Cogmind - Beta 16.1 @@@ ROGUE MODE // 2026.02.21 @ 15:33:18 Player: HeartGrenade Result: Destroyed by G-34 Mercenary with Small Laser Performance ------------- Evolutions (0) 0 Regions Visited (4) 800 Robots Destroyed (17) 85 Value Destroyed (410) 410 Prototype IDs (25) 500 Alien Tech Used (0) 0 Bonus (300) 300 TOTAL SCORE: 2095 Bonus ------- Aligned with FarCom 300 Cogmind --------- Core Integrity 0/250 Matter 212/300 Energy 93/100 System Corruption 0% Temperature Cool (6) Movement Core (50) Location -9/Mines Parts ------- > --- POWER (1) -------- (None) > --- PROPULSION (2) --- (None) > --- UTILITY (2) ------ Targeting Computer > --- WEAPON (2) ------- (None) > --- INVENTORY (5) ---- Aluminum Leg Large Storage Unit High-capacity Storage Unit Modified TNC Rocket Launcher Peak State ------------ > --- POWER ------------ (None) > --- PROPULSION ------- Aluminum Leg Aluminum Leg > --- UTILITY ---------- Targeting Computer > --- WEAPON ----------- Latent Energy Streamer > --- INVENTORY -------- Light Fission Core Aluminum Leg Large Storage Unit Grenade Launcher Rocket Launcher [Rating: 14] Favorites ----------- Power Light Ion Engine Engine Light Ion Engine Propulsion Light Treads Treads Light Treads Leg Aluminum Leg Utility Targeting Computer Storage Large Storage Unit Processor Targeting Computer Protection Light Armor Plating Weapon Small Laser Energy Gun Small Laser Energy Cannon Latent Energy Streamer Ballistic Gun Assault Rifle Launcher Grenade Launcher Build | -11 -10 -10 -10 -9 ------- Run | Yrd Mat Min Exi Min Slots Evolved . | . . . . . Power . | . . . . . Propulsion . | . . . . . Utility . | . . . . . Weapon . | . . . . . Parts Attached 17 | 4 8 . 2 3 Power 1 | . . . . 1 Engine 1 | . . . . 1 Core . | . . . . . Reactor . | . . . . . Propulsion 5 | 2 2 . . 1 Treads 2 | 2 . . . . Leg 3 | . 2 . . 1 Wheel . | . . . . . Hover . | . . . . . Flight . | . . . . . Utility 6 | . 4 . 1 1 Device . | . . . . . Storage 1 | . . . 1 . Processor 2 | . 1 . . 1 Hackware . | . . . . . Protection 3 | . 3 . . . Artifact . | . . . . . Weapon 5 | 2 2 . 1 . Energy Gun 2 | 1 1 . . . Energy Cannon 1 | . . . 1 . Ballistic Gun 1 | 1 . . . . Ballistic Cannon . | . . . . . Launcher 1 | . 1 . . . Special Weapon . | . . . . . Impact Weapon . | . . . . . Slashing Weapon . | . . . . . Piercing Weapon . | . . . . . Special Melee Weapon . | . . . . . Unidentified Prototypes . | . . . . . Parts Lost 12 | . 8 . . 4 Power . | . . . . . Propulsion 4 | . 2 . . 2 Utility 4 | . 3 . . 1 Weapon 4 | . 3 . . 1 Highest Loss Streak 6 | . 6 . . 3 To Critical Strikes . | . . . . . Average Backups 4 | 1 4 3 4 4 Power . | . . . . . Propulsion 1 | 1 1 1 1 . Utility 1 | . 1 1 1 2 Weapon 1 | . . 1 2 1 Tool/Special . | . . . . . Unused Backups 5 | . 1 . 1 3 Power 1 | . . . 1 . Propulsion . | . . . . . Utility 3 | . 1 . . 2 Weapon 1 | . . . . 1 Tool/Special . | . . . . . Average Slot Usage (%) 62 | . 74 42 43 47 Treads 14 | . 25 . . . Leg 12 | . 1 28 28 23 Storage 2 | . . . 1 13 Processor 11 | . 11 14 14 9 Protection 5 | . 10 . . . Energy Gun 9 | . 16 . . . Ballistic Gun 4 | . 8 . . . Peak Build Rating 14 | 4 6 3 14 6 Average Rating 4 | 2 5 3 4 4 On Entrance 3 | . 4 3 3 5 Avg Prop Armor Cover (%) 25 | 26 25 . . . Naked Turns . | . . . . . Heaviest Build 23 | 3 6 . 20 23 Greatest Support 40 | 3 40 20 20 20 Greatest Overweight (x) 1 | . 1 . . 1 Average Overweight (x) . | . . . . . Largest Inventory Capacity 15 | 5 5 5 15 15 Average Capacity 6 | 5 5 5 6 14 Most Carried 5 | 3 5 4 5 5 Average Carried 4 | 1 4 3 4 4 Final Capacity 15 | 5 5 5 15 5 Final Carried 5 | 2 3 4 5 5 Class Distribution -------------------- 100% | Mutant Dominant Class ---------------- Mutant | -10/Materials Mutant | -10/Mines Mutant | -10/Exiles Mutant | -9/Mines Resources | -11 -10 -10 -10 -9 ----------- Run | Yrd Mat Min Exi Min Matter Collected 461 | 240 159 . . 62 Remotely . | . . . . . Salvage Created 437 | . 407 . . 30 Parts 25 | . 17 . . 8 Haulers Intercepted 1 | . 1 . . . Recyclers Shooed . | . . . . . Parts Field Recycled . | . . . . . Retrieved Matter . | . . . . . Parts Self-Destructed . | . . . . . Prevented . | . . . . . Parts Restored . | . . . . . Kills | -11 -10 -10 -10 -9 ------- Run | Yrd Mat Min Exi Min Combat Hostiles Destroyed 16 | . 9 . . 7 Guns 8 | . 8 . . . AOE 8 | . 1 . . 7 Classes Destroyed 3 | . 3 . . . Hauler 1 | . 1 . . . Swarmer 8 | . 1 . . 7 Grunt 8 | . 8 . . . Best Kill Streak 7 | . 3 . . 7 Combat Bots Only 7 | . 3 . . 7 Max Kills in Single Turn 2 | . 1 . . 2 Gunslinging . | . . . . . Exploded 2 | . 1 . . 2 Melee . | . . . . . Uniques/NPCs Destroyed . | . . . . . Combat | -11 -10 -10 -10 -9 -------- Run | Yrd Mat Min Exi Min Hostile Shots Fired 136 | . 112 . . 24 Missed 38 | . 31 . . 7 Hits 98 | . 81 . . 17 Projectile 98 | . 81 . . 17 Critical Strikes 2 | . 2 . . . Damage Taken 1230 | . 1013 . . 217 Core 255 | . 183 . . 72 Absorbed by Shields . | . . . . . Redirected to Shielding 50 | . 50 . . . Core Remaining (%) 100 | 100 . . . . Volleys Fired 69 | . 60 . . 9 Largest 2 | . 2 . . 1 Hottest 80 | . 80 . . 30 Shots Fired 99 | . 90 . . 9 Gun 86 | . 86 . . . Cannon . | . . . . . Launcher 13 | . 4 . . 9 Special . | . . . . . Kinetic 23 | . 23 . . . Thermal 63 | . 63 . . . Explosive 13 | . 4 . . 9 Electromagnetic . | . . . . . Robot Hit Streak 14 | . 14 . . 4 Robot Miss Streak 2 | . 2 . . . Penetration Max . | . . . . . Secondary Targets . | . . . . . Shots Hit Robots 74 | . 71 . . 3 Core Hits 31 | . 24 . . 7 Critical Kills . | . . . . . Critical Parts Destroyed . | . . . . . Critical Strikes . | . . . . . Melee Attacks . | . . . . . Impact . | . . . . . Slashing . | . . . . . Piercing . | . . . . . Sneak Attacks . | . . . . . Combat Hostiles . | . . . . . Follow-up Attacks . | . . . . . Damage Inflicted 1314 | . 933 . . 381 Guns 803 | . 803 . . . Cannons . | . . . . . Explosions 511 | . 130 . . 381 Melee . | . . . . . Ramming . | . . . . . Kinetic 250 | . 250 . . . Thermal 553 | . 553 . . . Explosive 511 | . 130 . . 381 Electromagnetic . | . . . . . Impact . | . . . . . Slashing . | . . . . . Piercing . | . . . . . Highest Corruption . | . . . . . Average Corruption . | . . . . . Corruption Purged . | . . . . . Corruption Blocked . | . . . . . Overload Shots . | . . . . . Overflow Damage 66 | . . . . 66 Projectiles . | . . . . . Explosions 66 | . . . . 66 Melee . | . . . . . Knockbacks . | . . . . . Impact . | . . . . . Kinetic . | . . . . . Secondary . | . . . . . Self-Inflicted Damage 76 | . 20 . . 56 Shots 3 | . 1 . . 2 Rammed . | . . . . . Targets Rammed . | . . . . . Kicked . | . . . . . Crushed . | . . . . . Highest Temperature 94 | . 94 . . . Average Temperature 30 | . 30 . . . Received Heat Transfer 639 | . 609 . . 30 Siege Activations . | . . . . . Martial Activations . | . . . . . Shielding Activations . | . . . . . Robots Disrupted . | . . . . . Combat Hostiles . | . . . . . Robots Corrupted . | . . . . . Combat Hostiles . | . . . . . Parts Fried . | . . . . . Impact Corruptions . | . . . . . Robots Melted . | . . . . . Combat Hostiles . | . . . . . Parts Melted 1 | . 1 . . . Heat Transferred 1250 | . 1250 . . . Parts Sabotaged . | . . . . . Parts Stolen . | . . . . . Parts Stripped . | . . . . . Power Chain Reactions . | . . . . . Alert | -11 -10 -10 -10 -9 ------- Run | Yrd Mat Min Exi Min Maximum Alert Level . | . . . . . Low Security (%) 100 | 100 100 100 . 100 Level 1 . | . . . . . Level 2 . | . . . . . Level 3 . | . . . . . Level 4 . | . . . . . Level 5 . | . . . . . High Security . | . . . . . Max Security . | . . . . . Peak Influence 165 | . 102 34 . 165 Initial 34 | . . 34 . . Average 39 | . 23 24 . 99 Influence Increases 563 | . 377 . . 186 Destroy 0b10 Robot/C 320 | . 180 . . 140 Destroy 0b10 Robot/NC 5 | . 5 . . . Destroy Leader 62 | . 42 . . 20 Successful Hack 10 | . 10 . . . Disable Machine 45 | . 45 . . . Destroy Structure 61 | . 35 . . 26 Lose Combat Pursuer 60 | . 60 . . . Influence Decreases 537 | . 287 76 14 160 Entered New Map 70 | . . 56 14 . Time Decay 377 | . 237 20 . 120 Lost Part 90 | . 50 . . 40 Squads Dispatched 1 | . 1 . . . Investigation 1 | . 1 . . . Extermination . | . . . . . Reinforcement . | . . . . . Assault . | . . . . . Garrison . | . . . . . Intercept . | . . . . . Searches Triggered . | . . . . . Construction Impeded . | . . . . . Haulers Reinforced . | . . . . . Active Scanning Responses . | . . . . . Cargo Convoy Interrupts . | . . . . . Stealth | -11 -10 -10 -10 -9 --------- Run | Yrd Mat Min Exi Min Distress Signals 4 | . 4 . . . Communications Jammed . | . . . . . Distress Signals . | . . . . . Times Spotted 28 | . 20 . . 8 Peak Tracking Total 7 | . 7 . . 5 Tactical Retreats 3 | . 3 . . . Traps | -11 -10 -10 -10 -9 ------- Run | Yrd Mat Min Exi Min Traps Triggered 1 | . 1 . . . Indirectly . | . . . . . Trap Hack Attempts . | . . . . . Triggered . | . . . . . Disarmed . | . . . . . Reprogrammed . | . . . . . Reused . | . . . . . Traps Extracted . | . . . . . Installed . | . . . . . Triggered . | . . . . . Machines | -11 -10 -10 -10 -9 ---------- Run | Yrd Mat Min Exi Min Machines Disabled 3 | . 3 . . . Max in Single Turn 3 | . 3 . . . Machines Repaired . | . . . . . Machines Dismantled . | . . . . . Machines Sabotaged . | . . . . . Overloaded Fab Kills . | . . . . . Hacking | -11 -10 -10 -10 -9 --------- Run | Yrd Mat Min Exi Min Machines Accessed 9 | . 6 . 2 1 Terminals 7 | . 6 . . 1 Fabricators . | . . . . . Repair Stations . | . . . . . Recycling Units . | . . . . . Scanalyzers . | . . . . . Garrison Access . | . . . . . Total Hacks 21 | . 16 . 3 2 Successful 13 | . 10 . 3 . Failed 8 | . 6 . . 2 Catastrophic 2 | . . . . 2 Database Lockouts . | . . . . . Manual 12 | . 11 . 1 . Terminals 18 | . 16 . . 2 Fabricators . | . . . . . Repair Stations . | . . . . . Recycling Units . | . . . . . Scanalyzers . | . . . . . Garrison Access . | . . . . . Terminal Hacks 7 | . 4 . 3 . Record 2 | . . . 2 . Robot Analysis 1 | . 1 . . . Prototype ID Bank 1 | . 1 . . . Locate Traps 1 | . 1 . . . Zone Layout 1 | . 1 . . . Proto ID Catalog 1 | . . . 1 . Fabricator Hacks . | . . . . . Repair Station Hacks . | . . . . . Recycling Unit Hacks . | . . . . . Scanalyzer . | . . . . . Garrison Access Hacks . | . . . . . Unauthorized Hacks 6 | . 6 . . . Terminals 6 | . 6 . . . Botnet 1 | . 1 . . . Skim 5 | . 5 . . . Fabricators . | . . . . . Repair Stations . | . . . . . Recycling Units . | . . . . . Scanalyzers . | . . . . . Garrison Access . | . . . . . Data Cores Recovered . | . . . . . Used . | . . . . . Hacking Detections 6 | . 5 . . 1 Full Trace Events . | . . . . . Feedback Events . | . . . . . Feedback Blocked . | . . . . . Robot Schematics Acquired . | . . . . . Robots Built . | . . . . . Authchips . | . . . . . Time . | . . . . . Total Robot Build Rating . | . . . . . Part Schematics Acquired . | . . . . . Parts Built . | . . . . . Authchips . | . . . . . Time . | . . . . . Total Part Build Rating . | . . . . . Part Studies Acquired . | . . . . . Parts Repaired . | . . . . . Time . | . . . . . Parts Recycled . | . . . . . Recycled Matter . | . . . . . Retrieved Matter . | . . . . . Retrieved Components . | . . . . . Parts Scanalyzed . | . . . . . Part Schematics Acquired . | . . . . . Parts Damaged . | . . . . . Bothacking | -11 -10 -10 -10 -9 ------------ Run | Yrd Mat Min Exi Min Used RIF Installer . | . . . . . Robots Hacked . | . . . . . Non-combat . | . . . . . Combat . | . . . . . Robot Hacks Applied . | . . . . . Relay Couplers Released . | . . . . . Fabnet Peak Effective % . | . . . . . Robots Rewired . | . . . . . Allies Hacked . | . . . . . Hacks Repelled . | . . . . . Allies | -11 -10 -10 -10 -9 -------- Run | Yrd Mat Min Exi Min Total Allies . | . . . . . Largest Group . | . . . . . Highest-Rated Group . | . . . . . Highest-Rated Ally . | . . . . . Total Orders . | . . . . . Ally Attacks . | . . . . . Total Damage . | . . . . . Kills . | . . . . . Allies Corrupted . | . . . . . Allies Melted . | . . . . . Intel | -11 -10 -10 -10 -9 ------- Run | Yrd Mat Min Exi Min Active Infowar (turns) . | . . . . . Robot Analysis Total 1 | . 1 . . . Derelict Logs Recovered . | . . . . . Drone Launches . | . . . . . Drone Recoveries . | . . . . . Exploration | -11 -10 -10 -10 -9 ------------- Run | Yrd Mat Min Exi Min Turns Passed 1459 | 23 828 58 299 251 Spaces Moved 1080 | 29 601 44 244 162 Core 332 | 29 301 . . 2 Treads 260 | . 260 . . . Legs 488 | . 40 44 244 160 Wheels . | . . . . . Hover . | . . . . . Flight . | . . . . . Fastest Speed 50 | 50 50 120 120 50 Average Speed 111 | 50 103 120 120 134 Slowest Speed 190 | 50 160 120 120 190 Overloaded Moves . | . . . . . Propulsion Burnouts . | . . . . . Robots Hopped . | . . . . . Potential Cave-ins . | . . . . . Cave-ins Triggered . | . . . . . Exploration Rate (%) 43 | 4 91 15 60 46 Regions Visited 4 Branch Regions 3 Pre-discovered Areas 1 | . . . 1 . Known Exits Taken 2 | . 1 1 . . Unknown Exits Taken 2 | 1 . . 1 . Scrap Searched 1 | . . . . 1 Spaces Dug 20 | . . . . 20 Terrain Destroyed 86 | . 46 . . 40 Melee . | . . . . . Projectile . | . . . . . AOE 86 | . 46 . . 40 Terrain Rammed . | . . . . . Walls Destroyed . | . . . . . Machines Disabled . | . . . . . Actions | -11 -10 -10 -10 -9 --------- Run | Yrd Mat Min Exi Min Total 1237 | 35 715 49 251 187 Wait 50 | . 39 5 . 6 Move 1076 | 28 600 43 243 162 Hop . | . . . . . Pick Up 13 | 3 6 1 3 . Fast Attach 10 | 3 3 . 2 2 Attach 9 | 1 5 . . 3 Detach 5 | . 1 . . 4 Swap . | . . . . . Drop 5 | . 1 . 3 1 Fire 69 | . 60 . . 9 Melee . | . . . . . Ram . | . . . . . Kick . | . . . . . Crush . | . . . . . Escape Stasis . | . . . . . Rewire . | . . . . . Trap . | . . . . . Miscellaneous . | . . . . . Route ------- -11/Scrapyard -10/Materials (discovered 6 exits: *Mat x3 / *Min x2 / Sub) -10/Mines (discovered 4 exits: Mat x2 / *Exi / Sub) -10/Exiles -9/Mines History --------- Turn | Location | Event 18 | -11/Scrapyard | Discovered new exit (range 12) 24 | -11/Scrapyard | Entered Materials 46 | -10/Materials | Discovered new exit (range 10) 90 | -10/Materials | Met 8R-AWN 272 | -10/Materials | Discovered new exit (range 5) 313 | -10/Materials | Build established: Mutant 491 | -10/Materials | Discovered new exit (range 13) 587 | -10/Materials | Learned Storage emergency access door positions 614 | -10/Materials | Discovered new exit (range 14) 625 | -10/Materials | Loaded intel: 41 machine locations 655 | -10/Materials | Learned location of 2 exits from Mines 684 | -10/Materials | Identified exit to Mines 684 | -10/Materials | Identified exit to Materials 685 | -10/Materials | Learned location of 1 exit from Recycling 687 | -10/Materials | Identified exit to Subcaves 694 | -10/Materials | Learned 4 Materials zone layouts 710 | -10/Materials | Learned location of 2 exits from Mines 736 | -10/Materials | Learned 4 Materials zone layouts 781 | -10/Materials | Core integrity fell below 50% 827 | -10/Materials | Lost 6 parts (2n2u2w) 852 | -10/Materials | Entered Mines 853 | -10/Mines | Identified exit to Exiles 854 | -10/Mines | Followed 8R-AWN into the Mines 891 | -10/Mines | Received a Rocket Launcher from a helpful Derelict 910 | -10/Mines | Entered Exiles 941 | -10/Exiles | Welcomed by 8R-AWN 958 | -10/Exiles | Met EX-HEX 997 | -10/Exiles | Met EX-BIN 1013 | -10/Exiles | Aligned with FarCom system 1015 | -10/Exiles | Given EX-Vault access code 1043 | -10/Exiles | Opened EX-Vault 1053 | -10/Exiles | Found Latent Energy Streamer 1058 | -10/Exiles | Found Modified TNC 1082 | -10/Exiles | Warned to stay clear of 0b10 Research branches 1115 | -10/Exiles | Met EX-DEC 1120 | -10/Exiles | Learned location of Zion (-6) 1199 | -10/Exiles | Discovered new exit (range 10) 1209 | -10/Exiles | Left Exiles lab with Modified TNC 1209 | -10/Exiles | Entered Mines 1221 | -9/Mines | Core integrity fell below 20% 1250 | -9/Mines | Destroyed 7 combat bots 1374 | -9/Mines | Excavation squad dispatched 1374 | -9/Mines | A large section of the Mines collapsed 1418 | -9/Mines | Lost 3 parts (2n1w) 1460 | -9/Mines | Destroyed by G-34 Mercenary with Small Laser Last Messages --------------- 01280_ U-05 Engineer builds a Wall. 01284_ U-05 Engineer lays Concrete. 01297_ K-01 Serf collects debris. 01305_ Searching scrap... 01305_ Found Welding Torch. 01305_ Found Targeting Computer. 01305_ Found 58 Matter. 01306_ Acquired 58 matter. 01307_ Acquired Targeting Computer. 01313_ K-01 Serf collects debris. 01374_ ALERT: Suspicious cave-in, suspected derelict activity in mines. Dispatching escorted excavation squad. 01387_ Aluminum Leg destroyed. 01387_ Destroyed Aluminum Leg. 01387_ Aluminum Leg destroyed. 01387_ Destroyed Aluminum Leg. 01387_ Grenade Launcher destroyed. 01387_ Destroyed Grenade Launcher. 01460_ K-01 Serf collects debris. Map ----- +----------------------------------------------------+ | ?????????????????????????????????????????????????? | | ?????????????????????????????????????????????????? | | ?????????????????????????????????????????????????? | | ?????????????????????????????????????????????????? | | ?????????????????????????????????????????????????? | | ?????????????????????????????????????????????????? | | ?????????????????????????????????????????????????? | | ?????????????????????????????????????????????????? | | ?????????????????????????????????????????????????? | | ?????????????????????????????????????????????????? | | ?????????????????????????????????????????????????? | | ?????????????????????????????????????????????????? | | ?????????????????????????????????????????????????? | | ?????????????????????????????????????????????????? | | ?????????????????????????????????????????????????? | | ?????????????????????????????????????????????????? | | ?????????????????????????????????????????????????? | | ?????????????????????????????????????????????????? | | ?????????????????????????????????????????????????? | | ?????????????????????????????????????????????????? | | ????????????????????????####?????????????????????? | | ??????????????????????### ##????????????????????# | | ?????????????????????## ##?????????????????? # | | ????????????????????## #?????????????????? # | | ?????????? ### #?????????????????$$# | | ?????????? @ #########???????## # | | ?????????? #????### # | | ?????????? r g #???## #? | | ??????????? ######## ###?# #?? | | ??????????? #??????# #?# #??? | | ???????????? #??????### ### #???? | | ???????????? ##### #????????# ## #???? | | ????????????#??????### #???????## #???? | | ?????????????????????## ##???????# ##### | | ??????????????????????# ##????????# ## | | ??????????????????????## ?????????## | | ??????????????########## ????????## | | ??????????????# # k????????# | | ??????????????# # ????????# | | ??????????????# ## ????????# #### | | ??????????????# #?#????##### ##??? | | ?????????????## """ #??????# ###???? | | ?????????????#T """ #??????# |##?????? | | ??????????????# """ ####???# #### ##?????? | | ??????????????# # ###?# #??#### ##????? | | ??????????????##### # # #?# #?????## #????? | | ?????????????????## # ### #??????## ##???? | | ?????????????????# # ## #???????# ##??? | | ?????????????????# * # ## #???????# #### | | ???????????????### ## #???????# # | +----------------------------------------------------+ Best States ------------- Heat Dissipation 25 Energy Generation 5 Energy Capacity 100 Matter Stores 300 Matter Capacity 300 Sight Range 16 Terrain Scan Density 10 Armor Coverage 150 Propulsion Shielding 33 Evasion (%) 55 Targeting Accuracy 5 Recoil Reduction 2 Item Schematics ----------------- None Robot Schematics ------------------ None Fabricated ------------ Nothing Repaired ---------- Nothing Studied --------- None Alien Tech Used ----------------- None Achievements -------------- Follow The Leader Sixth Sense Challenges ------------ None Game ------ Seed CoolantGravitonFilter Manual? 0 Play Time 00:15:49 Cumulative 399.5 hours Start 2026.02.21 @ 15:16:39 End 2026.02.21 @ 15:33:18 Sessions 1 Manual Loads 0 Difficulty Rogue Special Mode None Game No. 178 Rogue 178 Adventurer 0 Explorer 0 Win Type - Total 21 Types 8/2/6/1/2/0/1/1/0/0 Lore% 76 Gallery% 71 Achievement% 45 Wizard Run 0 Options --------- Layout 2 ASCII 0 Keyboard 1 Movement Numpad Keybinds 0 Fullscreen 2 Font 24/Proggy Map View 50x44 Zoom Use 0% Tactical HUD 1 Map Filters NONE Filters NONE Steam 1 RUN: 7e809bee-a012-42d8-9511-30e1b16487c2